[Event "Early-Titled-Tuesday-Blitz-February-20-2024"]
[Site "Chess.com"]
[Date "2024.02.20"]
[Round "2"]
[White "FuenfgegenWilly"]
[Black "martinmena"]
[Result "1-0"]
[WhiteElo "2484"]
[BlackElo "2188"]
[TimeControl "180+1"]
[EndTime "8:16:46 PST"]
[Termination "FuenfgegenWilly won on time"]

1. e4 {[%clk 0:03:00]} 1... c6 {[%clk 0:02:57.6]} 2. Nc3 {[%clk 0:02:59.9]} 2...
d5 {[%clk 0:02:58.5]} 3. Qe2 {[%clk 0:03:00.1]} 3... d4 {[%clk 0:02:44.6]} 4.
Nd1 {[%clk 0:02:59.7]} 4... e5 {[%clk 0:02:44.9]} 5. d3 {[%clk 0:03:00.6]} 5...
f5 {[%clk 0:02:41.9]} 6. f4 {[%clk 0:03:01.5]} 6... exf4 {[%clk 0:02:35.5]} 7.
exf5+ {[%clk 0:02:58.1]} 7... Qe7 {[%clk 0:02:34.2]} 8. Bxf4 {[%clk 0:02:55.1]}
8... Bxf5 {[%clk 0:02:32]} 9. Nf3 {[%clk 0:02:54]} 9... Qxe2+ {[%clk 0:02:23.4]}
10. Bxe2 {[%clk 0:02:54.9]} 10... c5 {[%clk 0:02:19.5]} 11. Ne5 {[%clk
0:02:54.7]} 11... Nf6 {[%clk 0:02:00.1]} 12. Bf3 {[%clk 0:02:52.3]} 12... Bc8
{[%clk 0:01:53.5]} 13. O-O {[%clk 0:02:48.8]} 13... Bd6 {[%clk 0:01:51.4]} 14.
b3 {[%clk 0:02:29]} 14... O-O {[%clk 0:01:44.2]} 15. Nb2 {[%clk 0:02:28.7]}
15... Bxe5 {[%clk 0:01:13.2]} 16. Bxe5 {[%clk 0:02:28.6]} 16... Re8 {[%clk
0:00:52.1]} 17. Nc4 {[%clk 0:02:26.9]} 17... Nc6 {[%clk 0:00:27.2]} 18. Bd6
{[%clk 0:02:25.4]} 18... Nd7 {[%clk 0:00:19.9]} 19. Bd5+ {[%clk 0:02:25.5]}
19... Kh8 {[%clk 0:00:19]} 20. Rae1 {[%clk 0:02:26.4]} 20... Rxe1 {[%clk
0:00:08.2]} 21. Rxe1 {[%clk 0:02:27.3]} 21... h6 {[%clk 0:00:03.1]} 22. Bf7
{[%clk 0:02:23.6]} 22... Kh7 {[%clk 0:00:01.4]} 23. h4 {[%clk 0:02:20.9]} 23...
Nd8 {[%clk 0:00:01.2]} 24. Be8 {[%clk 0:02:19.4]} 24... Nf6 {[%clk 0:00:01.1]}
25. Bc7 {[%clk 0:01:58.9]} 25... Be6 {[%clk 0:00:01.5]} 26. Bxd8 {[%clk
0:01:55]} 26... Rxd8 {[%clk 0:00:01.6]} 27. Rxe6 {[%clk 0:01:53.9]} 27... Rxe8
{[%clk 0:00:02.1]} 28. Rxe8 {[%clk 0:01:53.7]} 28... Nxe8 {[%clk 0:00:03]} 29.
Kf2 {[%clk 0:01:51.8]} 29... b6 {[%clk 0:00:03]} 30. Kf3 {[%clk 0:01:51.9]}
30... Kg6 {[%clk 0:00:03.4]} 31. g4 {[%clk 0:01:51.9]} 31... Kf6 {[%clk
0:00:03.5]} 32. Ke4 {[%clk 0:01:52.2]} 32... Ke6 {[%clk 0:00:04.1]} 33. g5
{[%clk 0:01:52.3]} 33... Nd6+ {[%clk 0:00:03.8]} 34. Nxd6 {[%clk 0:01:52.2]}
34... Kxd6 {[%clk 0:00:04.7]} 35. Kf5 {[%clk 0:01:52.9]} 35... Ke7 {[%clk
0:00:04.8]} 36. Kg6 {[%clk 0:01:53.3]} 36... hxg5 {[%clk 0:00:04.6]} 37. hxg5
{[%clk 0:01:53.4]} 37... Kf8 {[%clk 0:00:04.8]} 38. Kf5 {[%clk 0:01:53.9]} 38...
Kf7 {[%clk 0:00:05]} 39. g6+ {[%clk 0:01:54]} 39... Ke7 {[%clk 0:00:05.3]} 40.
Ke5 {[%clk 0:01:54.9]} 40... Kd7 {[%clk 0:00:05.8]} 41. a4 {[%clk 0:01:53.8]}
41... Ke7 {[%clk 0:00:05.7]} 42. a5 {[%clk 0:01:52.5]} 42... Kd7 {[%clk
0:00:04.6]} 43. a6 {[%clk 0:01:51.1]} 43... Ke7 {[%clk 0:00:04.4]} 44. Kd5
{[%clk 0:01:48]} 44... Kd7 {[%clk 0:00:04.6]} 45. b4 {[%clk 0:01:48.6]} 45...
cxb4 {[%clk 0:00:04.2]} 46. Kxd4 {[%clk 0:01:49]} 46... Kc6 {[%clk 0:00:04.2]}
47. Kc4 {[%clk 0:01:49.2]} 47... b5+ {[%clk 0:00:04.1]} 48. Kxb4 {[%clk
0:01:49.4]} 48... Kb6 {[%clk 0:00:04.8]} 49. d4 {[%clk 0:01:47.2]} 49... Kxa6
{[%clk 0:00:05.1]} 50. Kc5 {[%clk 0:01:47.6]} 50... b4 {[%clk 0:00:02.1]} 51.
Kc6 {[%clk 0:01:44.5]} 1-0

[Event "Early-Titled-Tuesday-Blitz-February-20-2024"]
[Site "Chess.com"]
[Date "2024.02.20"]
[Round "2"]
[White "Dewarfd"]
[Black "Chessbard1972"]
[Result "0-1"]
[WhiteElo "2148"]
[BlackElo "2464"]
[TimeControl "180+1"]
[EndTime "8:16:46 PST"]
[Termination "Chessbard1972 won by resignation"]

1. d4 {[%clk 0:02:59.5]} 1... Nf6 {[%clk 0:02:59.2]} 2. e3 {[%clk 0:02:59.6]}
2... g6 {[%clk 0:02:56.3]} 3. Nf3 {[%clk 0:02:59.3]} 3... Bg7 {[%clk 0:02:57.2]}
4. Be2 {[%clk 0:02:59]} 4... O-O {[%clk 0:02:57.2]} 5. b4 {[%clk 0:02:57.7]}
5... d5 {[%clk 0:02:56.7]} 6. O-O {[%clk 0:02:57.1]} 6... c6 {[%clk 0:02:57]} 7.
a4 {[%clk 0:02:56]} 7... a5 {[%clk 0:02:56.5]} 8. b5 {[%clk 0:02:55.5]} 8... Bf5
{[%clk 0:02:54.4]} 9. Nbd2 {[%clk 0:02:54.8]} 9... Nbd7 {[%clk 0:02:53.4]} 10.
c4 {[%clk 0:02:54.5]} 10... Ne4 {[%clk 0:02:49.9]} 11. Bb2 {[%clk 0:02:53.2]}
11... c5 {[%clk 0:02:43.5]} 12. cxd5 {[%clk 0:02:44.8]} 12... Ndf6 {[%clk
0:02:41.5]} 13. Qb3 {[%clk 0:02:24.5]} 13... Rc8 {[%clk 0:02:23.7]} 14. Nxe4
{[%clk 0:01:52.3]} 14... Bxe4 {[%clk 0:02:20]} 15. dxc5 {[%clk 0:01:39.7]} 15...
Rxc5 {[%clk 0:02:15.1]} 16. Rac1 {[%clk 0:01:22]} 16... Bxd5 {[%clk 0:02:11]}
17. Qa3 {[%clk 0:01:07.3]} 17... Rxc1 {[%clk 0:02:02.8]} 18. Rxc1 {[%clk
0:01:08.2]} 18... b6 {[%clk 0:01:50]} 19. Rd1 {[%clk 0:01:04.3]} 19... e6 {[%clk
0:01:39.5]} 20. Bxf6 {[%clk 0:00:59.6]} 20... Qxf6 {[%clk 0:01:38.8]} 21. Qd6
{[%clk 0:00:48.9]} 21... Bb3 {[%clk 0:01:32.7]} 22. Re1 {[%clk 0:00:39.4]} 22...
e5 {[%clk 0:01:23.8]} 23. Qxf6 {[%clk 0:00:28.7]} 23... Bxf6 {[%clk 0:01:22.8]}
24. Ra1 {[%clk 0:00:27.3]} 24... Rd8 {[%clk 0:01:17]} 25. e4 {[%clk 0:00:21]}
25... Rc8 {[%clk 0:01:11.9]} 26. Bd1 {[%clk 0:00:16.7]} 26... Be6 {[%clk
0:01:06.7]} 27. h3 {[%clk 0:00:11.2]} 27... Rc4 {[%clk 0:01:00.6]} 28. Nd2
{[%clk 0:00:11.5]} 28... Rd4 {[%clk 0:00:57.2]} 29. f3 {[%clk 0:00:07.5]} 29...
Rxd2 {[%clk 0:00:55.9]} 0-1

[Event "Early-Titled-Tuesday-Blitz-February-20-2024"]
[Site "Chess.com"]
[Date "2024.02.20"]
[Round "2"]
[White "blitzking1729"]
[Black "KanalSzachowy"]
[Result "0-1"]
[WhiteElo "2715"]
[BlackElo "2413"]
[TimeControl "180+1"]
[EndTime "8:16:47 PST"]
[Termination "KanalSzachowy won on time"]

1. c4 {[%clk 0:02:51.8]} 1... c5 {[%clk 0:02:59.5]} 2. Nf3 {[%clk 0:02:46.3]}
2... Nc6 {[%clk 0:02:59.6]} 3. e3 {[%clk 0:02:42.2]} 3... Nf6 {[%clk 0:02:57.1]}
4. Nc3 {[%clk 0:02:41.8]} 4... g6 {[%clk 0:02:56.3]} 5. d4 {[%clk 0:02:41.9]}
5... cxd4 {[%clk 0:02:57]} 6. exd4 {[%clk 0:02:42.8]} 6... d5 {[%clk 0:02:57.6]}
7. cxd5 {[%clk 0:02:41.1]} 7... Nxd5 {[%clk 0:02:58.3]} 8. Qb3 {[%clk
0:02:41.7]} 8... Nxc3 {[%clk 0:02:58.6]} 9. Bc4 {[%clk 0:02:41.5]} 9... Nd5
{[%clk 0:02:59]} 10. Bxd5 {[%clk 0:02:39.9]} 10... e6 {[%clk 0:02:59.7]} 11.
Bxc6+ {[%clk 0:02:40.1]} 11... bxc6 {[%clk 0:03:00.6]} 12. O-O {[%clk
0:02:40.6]} 12... Qd5 {[%clk 0:03:01.2]} 13. Qe3 {[%clk 0:02:38.6]} 13... Bg7
{[%clk 0:02:59.3]} 14. Bd2 {[%clk 0:02:35]} 14... O-O {[%clk 0:02:58.4]} 15.
Rfc1 {[%clk 0:02:34.4]} 15... Rb8 {[%clk 0:02:53.8]} 16. Rc5 {[%clk 0:02:25.3]}
16... Qd8 {[%clk 0:02:43]} 17. Bc3 {[%clk 0:02:24.4]} 17... Rb5 {[%clk
0:02:39.4]} 18. Re1 {[%clk 0:01:56]} 18... Rxc5 {[%clk 0:02:31.9]} 19. dxc5
{[%clk 0:01:56.2]} 19... Qd5 {[%clk 0:02:24.8]} 20. a3 {[%clk 0:01:54.4]} 20...
f6 {[%clk 0:02:20.4]} 21. h4 {[%clk 0:01:47.3]} 21... e5 {[%clk 0:02:16.5]} 22.
Qe2 {[%clk 0:01:41.6]} 22... Bg4 {[%clk 0:02:09.8]} 23. Rd1 {[%clk 0:01:38]}
23... Qf7 {[%clk 0:02:08.2]} 24. Qe4 {[%clk 0:01:34.1]} 24... h5 {[%clk
0:02:06.6]} 25. Qxc6 {[%clk 0:01:33.8]} 25... Rc8 {[%clk 0:02:02.4]} 26. Qd5
{[%clk 0:01:18.5]} 26... Be6 {[%clk 0:01:51.7]} 27. Qe4 {[%clk 0:01:14.2]} 27...
Rxc5 {[%clk 0:01:52]} 28. Rd8+ {[%clk 0:01:14.5]} 28... Kh7 {[%clk 0:01:52.4]}
29. Kh2 {[%clk 0:01:09.2]} 29... Qc7 {[%clk 0:01:46.1]} 30. Re8 {[%clk
0:00:15.7]} 30... Bf7 {[%clk 0:01:40.9]} 31. Bxe5 {[%clk 0:00:04.2]} 31... Rxe5
{[%clk 0:01:40.8]} 32. Rxe5 {[%clk 0:00:02.7]} 32... fxe5 {[%clk 0:01:41.2]} 33.
Ng5+ {[%clk 0:00:03.1]} 33... Kg8 {[%clk 0:01:33.1]} 34. Qa8+ {[%clk 0:00:03]}
34... Bf8 {[%clk 0:01:26.7]} 35. g3 {[%clk 0:00:03.3]} 35... Qc2 {[%clk
0:01:14.3]} 0-1

[Event "Early-Titled-Tuesday-Blitz-February-20-2024"]
[Site "Chess.com"]
[Date "2024.02.20"]
[Round "2"]
[White "Felix-Rose"]
[Black "szachuspl"]
[Result "1-0"]
[WhiteElo "2278"]
[BlackElo "2501"]
[TimeControl "180+1"]
[EndTime "8:16:49 PST"]
[Termination "Felix-Rose won by resignation"]

1. d4 {[%clk 0:03:00.9]} 1... Nf6 {[%clk 0:02:54.7]} 2. c4 {[%clk 0:02:54.5]}
2... g6 {[%clk 0:02:53.8]} 3. Nc3 {[%clk 0:02:52.9]} 3... Bg7 {[%clk 0:02:54.2]}
4. e4 {[%clk 0:02:52.4]} 4... d6 {[%clk 0:02:54.8]} 5. h3 {[%clk 0:02:51.2]}
5... O-O {[%clk 0:02:54.8]} 6. Bg5 {[%clk 0:02:47]} 6... h6 {[%clk 0:02:54.6]}
7. Be3 {[%clk 0:02:47]} 7... c5 {[%clk 0:02:53.1]} 8. d5 {[%clk 0:02:40.9]} 8...
e6 {[%clk 0:02:53.4]} 9. Bd3 {[%clk 0:02:35]} 9... exd5 {[%clk 0:02:53]} 10.
exd5 {[%clk 0:02:35.1]} 10... Re8 {[%clk 0:02:52.8]} 11. Nf3 {[%clk 0:02:33.1]}
11... Rxe3+ {[%clk 0:02:50.4]} 12. fxe3 {[%clk 0:02:32.4]} 12... Qe7 {[%clk
0:02:49.7]} 13. Qd2 {[%clk 0:02:21.6]} 13... Nbd7 {[%clk 0:02:49.5]} 14. O-O
{[%clk 0:02:20.6]} 14... Ne5 {[%clk 0:02:44.1]} 15. Nxe5 {[%clk 0:02:16.2]}
15... Qxe5 {[%clk 0:02:44.2]} 16. Rf3 {[%clk 0:01:58.4]} 16... Bd7 {[%clk
0:02:38.4]} 17. Raf1 {[%clk 0:01:58.5]} 17... Rf8 {[%clk 0:02:30.9]} 18. Qf2
{[%clk 0:01:56.1]} 18... Nh7 {[%clk 0:02:03.3]} 19. Rxf7 {[%clk 0:01:49]} 19...
Rd8 {[%clk 0:02:03.6]} 20. Bxg6 {[%clk 0:01:33.1]} 20... Ng5 {[%clk 0:02:00]}
21. Rf4 {[%clk 0:01:26.9]} 21... Bxh3 {[%clk 0:01:59]} 22. Ne4 {[%clk
0:00:48.4]} 22... Bd7 {[%clk 0:01:48.6]} 23. Nxg5 {[%clk 0:00:46.9]} 23... Qxg5
{[%clk 0:01:43.3]} 24. Bf7+ {[%clk 0:00:45]} 24... Kh8 {[%clk 0:01:42.4]} 25.
Be6 {[%clk 0:00:42.5]} 25... Be8 {[%clk 0:01:40.1]} 26. Rg4 {[%clk 0:00:39.6]}
26... Qe5 {[%clk 0:01:31.8]} 27. Qf8+ {[%clk 0:00:32.5]} 27... Bxf8 {[%clk
0:01:31.6]} 28. Rxf8+ {[%clk 0:00:31.6]} 28... Kh7 {[%clk 0:01:31.8]} 29. Bg8+
{[%clk 0:00:20.5]} 29... Kh8 {[%clk 0:01:31.4]} 30. Bf7+ {[%clk 0:00:18.2]}
30... Kh7 {[%clk 0:01:31.8]} 31. Bg8+ {[%clk 0:00:15.3]} 31... Kh8 {[%clk
0:01:31.1]} 32. Be6+ {[%clk 0:00:15.5]} 32... Kh7 {[%clk 0:01:30.7]} 33. Bf5+
{[%clk 0:00:15.7]} 33... Qxf5 {[%clk 0:01:30.7]} 34. Rxf5 {[%clk 0:00:16.6]}
34... Bg6 {[%clk 0:01:29.6]} 35. Rf6 {[%clk 0:00:15.9]} 35... Bh5 {[%clk
0:01:25]} 36. Rh4 {[%clk 0:00:14.1]} 36... Kg7 {[%clk 0:01:20.5]} 37. Re6 {[%clk
0:00:14.4]} 37... Bf7 {[%clk 0:01:15.9]} 38. Rexh6 {[%clk 0:00:13.9]} 38... Bg6
{[%clk 0:01:16.4]} 39. Rh3 {[%clk 0:00:12.5]} 39... Re8 {[%clk 0:01:14.2]} 40.
R6h4 {[%clk 0:00:11.6]} 40... a6 {[%clk 0:01:12]} 41. Rg3 {[%clk 0:00:11.8]} 1-0

[Event "Early-Titled-Tuesday-Blitz-February-20-2024"]
[Site "Chess.com"]
[Date "2024.02.20"]
[Round "2"]
[White "Hongjin"]
[Black "N_Mullodzhanov"]
[Result "1-0"]
[WhiteElo "2765"]
[BlackElo "2476"]
[TimeControl "180+1"]
[EndTime "8:16:53 PST"]
[Termination "Hongjin won on time"]

1. e4 {[%clk 0:03:00.9]} 1... c6 {[%clk 0:02:59.7]} 2. d4 {[%clk 0:03:00]} 2...
d5 {[%clk 0:02:59.7]} 3. exd5 {[%clk 0:03:00.9]} 3... cxd5 {[%clk 0:02:59.9]} 4.
Nf3 {[%clk 0:03:01.8]} 4... Nf6 {[%clk 0:02:59.8]} 5. Ne5 {[%clk 0:03:02]} 5...
Nc6 {[%clk 0:02:58.5]} 6. Bb5 {[%clk 0:03:02.1]} 6... Qc7 {[%clk 0:02:57.2]} 7.
O-O {[%clk 0:03:00.9]} 7... Bd7 {[%clk 0:02:52.7]} 8. Nxd7 {[%clk 0:03:00.9]}
8... Nxd7 {[%clk 0:02:53]} 9. Re1 {[%clk 0:02:59.1]} 9... e6 {[%clk 0:02:53.1]}
10. Nc3 {[%clk 0:02:57.6]} 10... Be7 {[%clk 0:02:43.3]} 11. Qd3 {[%clk
0:02:40.8]} 11... Nf6 {[%clk 0:02:13.2]} 12. Bg5 {[%clk 0:02:36.9]} 12... O-O
{[%clk 0:02:12.5]} 13. Rad1 {[%clk 0:02:34]} 13... a6 {[%clk 0:02:10.3]} 14.
Bxc6 {[%clk 0:02:29.2]} 14... bxc6 {[%clk 0:02:09.8]} 15. Bxf6 {[%clk
0:02:29.2]} 15... Bxf6 {[%clk 0:02:07.4]} 16. Na4 {[%clk 0:02:29.5]} 16... Rfb8
{[%clk 0:02:01.2]} 17. c3 {[%clk 0:02:24.4]} 17... g6 {[%clk 0:01:57.2]} 18. g3
{[%clk 0:02:21.4]} 18... Kg7 {[%clk 0:01:54.5]} 19. h4 {[%clk 0:02:21]} 19... h5
{[%clk 0:01:54.6]} 20. Qf3 {[%clk 0:02:19.4]} 20... Be7 {[%clk 0:01:51]} 21. Re2
{[%clk 0:02:17.5]} 21... Bd6 {[%clk 0:01:50.3]} 22. b3 {[%clk 0:02:14.9]} 22...
Qe7 {[%clk 0:01:44.7]} 23. Qe3 {[%clk 0:02:13.7]} 23... a5 {[%clk 0:01:39.1]}
24. Kg2 {[%clk 0:02:14]} 24... Rb7 {[%clk 0:01:38.7]} 25. Rd3 {[%clk 0:02:12.4]}
25... Rab8 {[%clk 0:01:38.3]} 26. Qd2 {[%clk 0:02:10.9]} 26... Rb5 {[%clk
0:01:29.2]} 27. Kh2 {[%clk 0:01:57.8]} 27... Qxh4+ {[%clk 0:01:21.8]} 28. Kg1
{[%clk 0:01:55.2]} 28... Qe7 {[%clk 0:01:13.9]} 29. Rf3 {[%clk 0:01:52.9]} 29...
Rh8 {[%clk 0:01:07.6]} 30. c4 {[%clk 0:01:40.6]} 30... dxc4 {[%clk 0:00:39.1]}
31. bxc4 {[%clk 0:01:41.5]} 31... Rg5 {[%clk 0:00:37.8]} 32. Nc3 {[%clk
0:01:36.6]} 32... Bb4 {[%clk 0:00:34.2]} 33. d5 {[%clk 0:01:34.9]} 33... cxd5
{[%clk 0:00:27]} 34. cxd5 {[%clk 0:01:33.5]} 34... e5 {[%clk 0:00:21.6]} 35. d6
{[%clk 0:01:28.8]} 35... Bxc3 {[%clk 0:00:07]} 36. Rxc3 {[%clk 0:01:23.7]} 36...
Qb7 {[%clk 0:00:04.2]} 37. Qxg5 {[%clk 0:01:19.8]} 37... Qb1+ {[%clk 0:00:02.2]}
38. Rc1 {[%clk 0:01:18.9]} 38... Qf5 {[%clk 0:00:01.5]} 39. Qxf5 {[%clk
0:01:18.9]} 39... gxf5 {[%clk 0:00:02.4]} 40. Rxe5 {[%clk 0:01:19]} 40... Kf6
{[%clk 0:00:01.7]} 41. f4 {[%clk 0:01:18.3]} 41... h4 {[%clk 0:00:01.7]} 42. d7
{[%clk 0:01:18.4]} 42... hxg3 {[%clk 0:00:01.6]} 43. Rc8 {[%clk 0:01:18]} 1-0

[Event "Early-Titled-Tuesday-Blitz-February-20-2024"]
[Site "Chess.com"]
[Date "2024.02.20"]
[Round "2"]
[White "manitodeplomo"]
[Black "GOGIEFF"]
[Result "0-1"]
[WhiteElo "2645"]
[BlackElo "3029"]
[TimeControl "180+1"]
[EndTime "8:16:54 PST"]
[Termination "GOGIEFF won on time"]

1. d4 {[%clk 0:03:00.9]} 1... Nf6 {[%clk 0:02:59.2]} 2. c4 {[%clk 0:03:00.4]}
2... e6 {[%clk 0:02:59.6]} 3. Nf3 {[%clk 0:02:57.4]} 3... d5 {[%clk 0:02:59.6]}
4. Nc3 {[%clk 0:02:56.4]} 4... c6 {[%clk 0:02:59.4]} 5. Bg5 {[%clk 0:02:54.6]}
5... h6 {[%clk 0:02:58.6]} 6. Bxf6 {[%clk 0:02:51.5]} 6... Qxf6 {[%clk
0:02:59.5]} 7. e3 {[%clk 0:02:47]} 7... Nd7 {[%clk 0:02:59.4]} 8. Qc2 {[%clk
0:02:46.3]} 8... g6 {[%clk 0:02:58.5]} 9. O-O-O {[%clk 0:02:45.9]} 9... Bg7
{[%clk 0:02:55.2]} 10. Kb1 {[%clk 0:02:45.3]} 10... O-O {[%clk 0:02:35.1]} 11.
h4 {[%clk 0:02:40.2]} 11... b5 {[%clk 0:02:35.1]} 12. cxb5 {[%clk 0:02:29.8]}
12... c5 {[%clk 0:02:35.2]} 13. Be2 {[%clk 0:02:16.5]} 13... a6 {[%clk
0:02:18.8]} 14. g4 {[%clk 0:02:01.1]} 14... Qe7 {[%clk 0:02:17.2]} 15. g5 {[%clk
0:02:00.2]} 15... h5 {[%clk 0:02:16]} 16. e4 {[%clk 0:01:54.7]} 16... axb5
{[%clk 0:02:06]} 17. Bxb5 {[%clk 0:01:55.6]} 17... Nb6 {[%clk 0:01:40.6]} 18.
Rhe1 {[%clk 0:01:44.3]} 18... Bb7 {[%clk 0:01:24]} 19. e5 {[%clk 0:01:34.6]}
19... Rfc8 {[%clk 0:01:22.9]} 20. Bf1 {[%clk 0:01:23.3]} 20... cxd4 {[%clk
0:01:14.9]} 21. Nxd4 {[%clk 0:01:22.1]} 21... Na4 {[%clk 0:01:14.5]} 22. Ndb5
{[%clk 0:01:16.3]} 22... Qb4 {[%clk 0:01:03.3]} 23. Rd4 {[%clk 0:00:41.5]} 23...
Nxc3+ {[%clk 0:00:52.7]} 24. Qxc3 {[%clk 0:00:33.1]} 24... Qe7 {[%clk
0:00:49.2]} 25. Qb4 {[%clk 0:00:28.1]} 25... Qd7 {[%clk 0:00:40.5]} 26. Nd6
{[%clk 0:00:26.2]} 26... Rcb8 {[%clk 0:00:40.7]} 27. Rc1 {[%clk 0:00:22.3]}
27... Bxe5 {[%clk 0:00:36.5]} 0-1

[Event "Early-Titled-Tuesday-Blitz-February-20-2024"]
[Site "Chess.com"]
[Date "2024.02.20"]
[Round "2"]
[White "rcmz"]
[Black "Yerlan-Ra"]
[Result "0-1"]
[WhiteElo "2179"]
[BlackElo "2482"]
[TimeControl "180+1"]
[EndTime "8:16:55 PST"]
[Termination "Yerlan-Ra won on time"]

1. b4 {[%clk 0:03:00.9]} 1... Nf6 {[%clk 0:02:58.2]} 2. Bb2 {[%clk 0:03:00.9]}
2... d5 {[%clk 0:02:58.9]} 3. e3 {[%clk 0:02:59.1]} 3... Bf5 {[%clk 0:02:57.4]}
4. f4 {[%clk 0:02:57.7]} 4... e6 {[%clk 0:02:56.8]} 5. a3 {[%clk 0:02:56.7]}
5... h5 {[%clk 0:02:54.6]} 6. Nf3 {[%clk 0:02:56.7]} 6... h4 {[%clk 0:02:52.4]}
7. Be2 {[%clk 0:02:56.2]} 7... h3 {[%clk 0:02:50.4]} 8. g3 {[%clk 0:02:55]} 8...
c5 {[%clk 0:02:48.3]} 9. b5 {[%clk 0:02:50.3]} 9... Nbd7 {[%clk 0:02:46.7]} 10.
Ne5 {[%clk 0:02:44.9]} 10... Nxe5 {[%clk 0:02:40.6]} 11. Bxe5 {[%clk 0:02:39.5]}
11... Bd6 {[%clk 0:02:39.9]} 12. Bb2 {[%clk 0:02:30.6]} 12... Ne4 {[%clk
0:02:36.4]} 13. Bxg7 {[%clk 0:02:13.6]} 13... Rh7 {[%clk 0:02:34.7]} 14. Bb2
{[%clk 0:02:10.3]} 14... Qa5 {[%clk 0:02:26.7]} 15. a4 {[%clk 0:02:06.3]} 15...
O-O-O {[%clk 0:02:23.2]} 16. Nc3 {[%clk 0:02:02]} 16... d4 {[%clk 0:02:17.5]}
17. exd4 {[%clk 0:01:57.6]} 17... cxd4 {[%clk 0:02:16.9]} 18. Nxe4 {[%clk
0:01:56.3]} 18... Bxe4 {[%clk 0:02:16.2]} 19. Bf3 {[%clk 0:01:54.3]} 19... Bxf3
{[%clk 0:02:11.2]} 20. Qxf3 {[%clk 0:01:54]} 20... Bb4 {[%clk 0:02:12.1]} 21.
Qd3 {[%clk 0:01:52.9]} 21... f5 {[%clk 0:02:10.3]} 22. Rf1 {[%clk 0:01:03.8]}
22... Rc7 {[%clk 0:02:06.1]} 23. Rf2 {[%clk 0:01:01.3]} 23... Kb8 {[%clk
0:01:58.5]} 24. Re2 {[%clk 0:01:00.5]} 24... Rdc8 {[%clk 0:01:56.7]} 25. Kd1
{[%clk 0:00:53.6]} 25... Rxc2 {[%clk 0:01:52.8]} 26. Qxc2 {[%clk 0:00:52.5]}
26... Rxc2 {[%clk 0:01:53.5]} 27. Kxc2 {[%clk 0:00:52.8]} 27... Qc7+ {[%clk
0:01:51.9]} 28. Kd3 {[%clk 0:00:49.5]} 28... Qc5 {[%clk 0:01:51.3]} 29. Re5
{[%clk 0:00:40.4]} 29... Qd6 {[%clk 0:01:47.3]} 30. Rae1 {[%clk 0:00:38.2]}
30... Bxd2 {[%clk 0:01:37.6]} 31. Kxd2 {[%clk 0:00:36.2]} 31... Qb4+ {[%clk
0:01:36.9]} 32. Kc1 {[%clk 0:00:35.8]} 32... d3 {[%clk 0:01:35.1]} 33. Kb1
{[%clk 0:00:30.2]} 33... Qxa4 {[%clk 0:01:30]} 34. Rxe6 {[%clk 0:00:29.8]} 34...
Qc2+ {[%clk 0:01:25.5]} 35. Ka1 {[%clk 0:00:28]} 35... d2 {[%clk 0:01:20]} 36.
Re8+ {[%clk 0:00:15.8]} 36... Kc7 {[%clk 0:01:18.7]} 37. R1e7+ {[%clk
0:00:14.1]} 37... Kb6 {[%clk 0:01:16.4]} 38. Re6+ {[%clk 0:00:09]} 38... Ka5
{[%clk 0:01:15.5]} 39. Rd8 {[%clk 0:00:04.2]} 39... d1=Q+ {[%clk 0:01:08.8]} 40.
Rxd1 {[%clk 0:00:02]} 40... Qxd1+ {[%clk 0:01:09.7]} 41. Ka2 {[%clk 0:00:01.9]}
41... Qd5+ {[%clk 0:01:10.6]} 0-1

[Event "Early-Titled-Tuesday-Blitz-February-20-2024"]
[Site "Chess.com"]
[Date "2024.02.20"]
[Round "2"]
[White "jimmy-schlumpf"]
[Black "Ural_bogatyr"]
[Result "0-1"]
[WhiteElo "2338"]
[BlackElo "2588"]
[TimeControl "180+1"]
[EndTime "8:16:57 PST"]
[Termination "Ural_bogatyr won by resignation"]

1. Nf3 {[%clk 0:03:00.9]} 1... d5 {[%clk 0:02:57.8]} 2. g3 {[%clk 0:03:00.2]}
2... Nf6 {[%clk 0:02:55.4]} 3. Bg2 {[%clk 0:03:00.4]} 3... e6 {[%clk 0:02:52.6]}
4. O-O {[%clk 0:03:00.7]} 4... Be7 {[%clk 0:02:50]} 5. d4 {[%clk 0:03:01.3]}
5... O-O {[%clk 0:02:48.9]} 6. c4 {[%clk 0:03:02]} 6... dxc4 {[%clk 0:02:49.8]}
7. Ne5 {[%clk 0:03:01.8]} 7... Nc6 {[%clk 0:02:47.5]} 8. Bxc6 {[%clk 0:03:02.4]}
8... bxc6 {[%clk 0:02:44.6]} 9. Nxc6 {[%clk 0:03:03.1]} 9... Qe8 {[%clk
0:02:45.2]} 10. Qa4 {[%clk 0:03:03.2]} 10... Bd6 {[%clk 0:02:29.9]} 11. Qxc4
{[%clk 0:03:02.1]} 11... a5 {[%clk 0:02:22.1]} 12. Ne5 {[%clk 0:03:02.6]} 12...
Ba6 {[%clk 0:02:20.4]} 13. Qc2 {[%clk 0:03:02.1]} 13... Nd5 {[%clk 0:02:16.8]}
14. Nc3 {[%clk 0:02:57.1]} 14... f6 {[%clk 0:02:06.1]} 15. Nf3 {[%clk
0:02:49.6]} 15... Qh5 {[%clk 0:01:58.6]} 16. Bd2 {[%clk 0:02:17.2]} 16... g5
{[%clk 0:01:19]} 17. Qe4 {[%clk 0:01:55.5]} 17... Qf7 {[%clk 0:01:13.1]} 18.
Bxg5 {[%clk 0:01:13.3]} 18... fxg5 {[%clk 0:01:06.9]} 19. Nxg5 {[%clk 0:01:12]}
19... Qf5 {[%clk 0:00:59.3]} 20. Qxe6+ {[%clk 0:01:08.6]} 20... Qxe6 {[%clk
0:00:55.7]} 21. Nxe6 {[%clk 0:01:08.7]} 21... Nxc3 {[%clk 0:00:50.2]} 22. Nxf8
{[%clk 0:01:00.2]} 22... Nxe2+ {[%clk 0:00:49.4]} 23. Kg2 {[%clk 0:01:00.6]}
23... Rxf8 {[%clk 0:00:48.3]} 24. Rad1 {[%clk 0:00:55]} 24... Rb8 {[%clk
0:00:26.9]} 25. Rd2 {[%clk 0:00:54]} 25... Bb4 {[%clk 0:00:26.5]} 26. Rc2 {[%clk
0:00:51.2]} 26... Nxd4 {[%clk 0:00:25.4]} 27. Rxc7 {[%clk 0:00:49.8]} 27...
Bxf1+ {[%clk 0:00:25.8]} 28. Kxf1 {[%clk 0:00:47.6]} 28... Bf8 {[%clk
0:00:23.3]} 29. b3 {[%clk 0:00:46.1]} 29... Ra8 {[%clk 0:00:19.8]} 30. f4 {[%clk
0:00:43]} 30... a4 {[%clk 0:00:19.4]} 31. Rc4 {[%clk 0:00:42.3]} 31... axb3
{[%clk 0:00:19.4]} 32. axb3 {[%clk 0:00:40.8]} 32... Nxb3 {[%clk 0:00:20.3]} 33.
Ke2 {[%clk 0:00:38.4]} 33... Ra2+ {[%clk 0:00:19.6]} 34. Kf3 {[%clk 0:00:37.8]}
34... Nd2+ {[%clk 0:00:19.1]} 0-1